fUST/lending_fUST_20250622
["ID","MTS","AMOUNT","RATE_DAILY","PERIOD"]
[366890317,1750552245605,-75676.3183852,0.00024,2]
[366890318,1750552245615,-1687.41683459,0.00024,2]
[366890319,1750552245626,-6928.46937295,0.00024,2]
[366890320,1750552245636,-10114.34832198,0.00024,2]
[366890321,1750552245645,-9683.95430417,0.00024,2]
[366890322,1750552245655,-10069.34537373,0.00024,2]
[366890323,1750552245664,-94544.10126187,0.00024,2]
[366890324,1750552245673,-408134.57705431,0.00024,2]
[366890338,1750552247441,-11633.49314003,0.00024,2]
[366890339,1750552247488,-460.77053506,0.00021917,2]
[366890340,1750552247498,-681.49,0.00023276,2]
[366890341,1750552247508,-682.01316125,0.00024,2]
[366890342,1750552247519,-3990.0,0.00024,2]
[366890343,1750552249629,-14406.682838,0.00024,2]
[366890344,1750552249860,-460.0,0.00021917,2]
[366890345,1750552249870,-460.0,0.00021917,2]
[366890346,1750552249879,-219.69041136,0.00021917,2]
[366890347,1750552250354,-240.30958864,0.00021917,2]
[366890348,1750552250364,-460.0,0.00021917,2]
[366890349,1750552250373,-460.0,0.00021917,2]
[366890350,1750552250382,-460.0,0.00021917,2]
[366890351,1750552250391,-460.0,0.00021917,2]
[366890352,1750552250401,-460.0,0.00021917,2]
[366890353,1750552250411,-460.0,0.00021917,2]
[366890354,1750552250420,-460.0,0.00021917,2]
[366890355,1750552250430,-460.0,0.00021917,2]
[366890356,1750552250439,-440.0,0.00021917,2]
[366890357,1750552250449,-460.0,0.00021917,2]
[366890358,1750552250458,-460.0,0.00021917,2]
[366890359,1750552250467,-681.49,0.00023276,2]
[366890360,1750552250477,-681.66102316,0.00023276,2]
[366890361,1750552250486,-151.0,0.0002394,7]
[366890362,1750552250495,-105931.24728999,0.00024,2]
[366890363,1750552250505,-158.0,0.00024,2]
[366890364,1750552250515,-230.10342898,0.00024,7]
[366890365,1750552250524,-523.9660634,0.00024,10]
[366890366,1750552250534,-424.93363889,0.00024,7]
[366890367,1750552250543,-151.0,0.00024,7]
[366890368,1750552250553,-151.0,0.00024,7]
[366890369,1750552250562,-460.0,0.00024006,2]
[366890370,1750552250572,-2729.02857469,0.00024038,10]
[366890371,1750552250581,-428.43522093,0.00024055,2]
[366890372,1750552250590,-25000.0,0.00024065,2]
[366890373,1750552250600,-460.0,0.00024106,2]
[366890374,1750552250609,-460.0,0.00024106,2]
[366890375,1750552250619,-160.0,0.00024107,10]
[366890376,1750552250628,-213.55395994,0.00024107,10]
[366890377,1750552250638,-500.0,0.00024108,11]
[366890378,1750552250647,-500.0,0.00024109,2]
[366890379,1750552250657,-184.6,0.00024122,6]
[366890380,1750552250666,-28795.60472658,0.00024141,2]
[366890381,1750552250676,-12136.73946492,0.00024141,2]
[366890382,1750552250686,-2729.02857469,0.00024141,10]
[366890383,1750552250697,-500.0,0.00024148,2]
[366890384,1750552250707,-1298.4595,0.00024164,4]
[366890385,1750552250718,-428.43522093,0.00024164,2]
[366890386,1750552250728,-2500.0,0.00024164,2]
[366890387,1750552250737,-1000.0,0.00024169,2]
[366890388,1750552250747,-500.0,0.00024169,2]
[366890389,1750552250759,-3716.36563572,0.000242,2]
[366890390,1750552250768,-159.007092,0.00024213,7]
[366890391,1750552250778,-1000.0,0.00024221,2]
[366890392,1750552250788,-1000.0,0.00024221,2]
[366890393,1750552250799,-2729.02857469,0.00024245,10]
[366890394,1750552250808,-460.0,0.00024252,2]
[366890395,1750552250818,-184.6,0.00024278,7]
[366890396,1750552250827,-151.0,0.000243,6]
[366890397,1750552250837,-800.0,0.000243,2]
[366890398,1750552250846,-151.0,0.000243,5]
[366890399,1750552250855,-428.43522093,0.00024301,2]
[366890400,1750552250865,-212.1857138,0.00024301,2]
[366890401,1750552250874,-1000.0,0.00024321,2]
[366890402,1750552250884,-1000.0,0.00024321,2]
[366890403,1750552250893,-1000.0,0.00024321,2]
[366890404,1750552250903,-1000.0,0.00024321,2]
[366890405,1750552250911,-2164.07,0.00024333,2]
[366890406,1750552250920,-209.19785458,0.00024337,2]
[366890407,1750552250930,-500.0,0.0002434,2]
[366890408,1750552250940,-2729.02857469,0.00024348,11]
[366890409,1750552250950,-751.24022253,0.00024355,2]
[366890410,1750552250959,-159.007092,0.00024401,2]
[366890411,1750552250969,-176.703382,0.00024401,2]
[366890412,1750552250979,-428.43522093,0.00024411,2]
[366890413,1750552250988,-184.6,0.00024434,7]
[366890414,1750552250998,-730.9591362,0.00024438,2]
[366890415,1750552251007,-2729.02857469,0.00024452,11]
[366890416,1750552251017,-500.0,0.00024498,2]
[366890417,1750552251026,-500.01625406,0.00024498,2]
[366890418,1750552251036,-151.0,0.000245,9]
[366890419,1750552251048,-501.37349327,0.000245,30]
[366890420,1750552251057,-150.0,0.000245,2]
[366890421,1750552251067,-3868.93008499,0.00024512,2]
[366890422,1750552251075,-428.43522093,0.00024521,2]
[366890423,1750552251085,-250.0,0.00024521,2]
[366890424,1750552251094,-288.18,0.00024552,2]
[366890425,1750552251103,-2729.02857469,0.00024555,11]
[366890426,1750552251113,-344.5752966,0.00024556,2]
[366890427,1750552251122,-500.0,0.00024573,2]
[366890428,1750552251131,-500.0,0.00024573,2]
[366890429,1750552251141,-500.0,0.00024573,2]
[366890430,1750552251151,-500.0,0.00024573,2]
[366890431,1750552251160,-555.82829724,0.00024573,2]
[366890432,1750552251169,-500.0,0.00024573,2]
[366890433,1750552251179,-500.0,0.00024573,2]
[366890434,1750552251188,-500.0,0.00024573,2]
[366890435,1750552251198,-501.61478119,0.00024573,2]
[366890436,1750552251207,-500.0,0.00024573,2]
[366890437,1750552251217,-500.0,0.00024573,2]
[366890438,1750552251226,-500.0,0.00024573,2]
[366890439,1750552251236,-600.0,0.00024573,2]
[366890440,1750552251246,-500.0,0.00024573,2]
[366890441,1750552251258,-151.0,0.00024575,7]
[366890442,1750552251355,-153.895371,0.00024575,7]
[366890443,1750552251365,-259.783993,0.00024575,7]
[366890444,1750552251375,-259.783993,0.00024575,7]
[366890445,1750552251386,-151.0,0.00024575,7]
[366890446,1750552251397,-573.4653004,0.00024575,2]
[366890447,1750552251407,-176.2005054,0.00024575,2]
[366890448,1750552251416,-306.0,0.00024575,2]
[366890449,1750552251425,-459.1516927,0.00024575,2]
[366890450,1750552251435,-184.6,0.0002459,7]
[366890451,1750552251445,-41138.90231736,0.00024598,2]
[366890452,1750552251455,-13556.9782024,0.000246,2]
[366890453,1750552251465,-151.0,0.000246,7]
[366890454,1750552251475,-78862.26,0.000246,2]
[366890455,1750552251484,-250.0,0.000246,2]
[366890456,1750552251494,-250.0,0.000246,2]
[366890457,1750552251503,-250.0,0.000246,2]
[366890458,1750552251513,-250.0,0.000246,2]
[366890459,1750552251523,-250.0,0.000246,2]
[366890460,1750552251532,-250.0,0.000246,2]
[366890461,1750552251542,-800.0,0.00024612,2]
[366890462,1750552251553,-727.247089,0.00024626,7]
[366890463,1750552251563,-727.247089,0.00024626,7]
[366890464,1750552251573,-428.43522093,0.0002463,2]
[366890465,1750552251583,-172.68515028,0.0002465,2]
[366890466,1750552251592,-460.0,0.0002465,2]
[366890467,1750552251601,-152.83,0.0002465,2]
[366890468,1750552251611,-44482.19322045,0.00024651,2]
[366890469,1750552251620,-151.0,0.00024651,7]
[366890470,1750552251630,-151.0,0.00024651,7]
[366890471,1750552251639,-151.0,0.00024651,7]
[366890472,1750552251650,-151.0,0.00024651,7]
[366890473,1750552251659,-155.553561,0.00024651,7]
[366890474,1750552251668,-151.0,0.00024651,7]
[366890475,1750552251678,-258.222367,0.00024651,7]
[366890476,1750552251687,-258.222367,0.00024651,7]
[366890477,1750552251697,-226.19588841,0.00024656,12]
[366890478,1750552251707,-160.0,0.00024656,2]
[366890479,1750552251716,-248.98264124,0.00024658,2]
[366890480,1750552251727,-1000.0,0.00024658,2]
[366890481,1750552251735,-1000.0,0.00024658,2]
[366890482,1750552251745,-1000.0,0.00024658,2]
[366890483,1750552251754,-1000.0,0.00024658,2]
[366890484,1750552251764,-1000.0,0.00024658,2]
[366890485,1750552251773,-1000.0,0.00024658,2]
[366890486,1750552251782,-1000.0,0.00024658,2]
[366890487,1750552251792,-1000.0,0.00024658,2]
[366890488,1750552251803,-1000.0,0.00024658,2]
[366890489,1750552251813,-412.36387083,0.00024658,2]
[366890490,1750552251822,-633.82085211,0.00024658,120]
[366890491,1750552251831,-500.0,0.00024658,2]
[366890492,1750552251841,-2729.02857469,0.00024659,11]
[366890493,1750552251851,-11913.75455837,0.00024662,120]
[366890494,1750552251860,-151.0,0.00024662,7]
[366890495,1750552251869,-14130.68231126,0.0002468,7]
[366890496,1750552251879,-160.0,0.0002468,7]
[366890497,1750552251889,-544.531843,0.0002468,7]
[366890498,1750552251898,-544.531843,0.0002468,7]
[366890499,1750552251907,-160.0,0.0002468,7]
[366890500,1750552251917,-213.55395994,0.0002468,7]
[366890501,1750552251927,-500.0,0.00024685,2]
[366890502,1750552251936,-151.0,0.000247,7]
[366890503,1750552251946,-151.0,0.000247,8]
[366890504,1750552251955,-250.0,0.000247,2]
[366890505,1750552251965,-250.0,0.000247,2]
[366890506,1750552251975,-250.0,0.000247,2]
[366890507,1750552251984,-250.0,0.000247,2]
[366890508,1750552251994,-250.0,0.000247,2]
[366890509,1750552252003,-250.0,0.000247,2]
[366890510,1750552252012,-305.4,0.000247,2]
[366890511,1750552252022,-1034.17833772,0.00024712,2]
[366890512,1750552252031,-500.0,0.00024713,2]
[366890513,1750552252041,-168.0,0.00024717,2]
[366890514,1750552252055,-200.0,0.0002472,11]
[366890515,1750552252064,-151.0,0.00024725,7]
[366890516,1750552252073,-151.0,0.00024725,7]
[366890517,1750552252083,-151.0,0.00024725,7]
[366890518,1750552252092,-151.0,0.00024725,7]
[366890519,1750552252102,-800.0,0.00024727,2]
[366890520,1750552252111,-800.0,0.00024734,2]
[366890521,1750552252119,-428.43522093,0.0002474,2]
[366890522,1750552252128,-500.0,0.0002474,2]
[366890523,1750552252138,-184.6,0.00024746,7]
[366890524,1750552252147,-2729.02857469,0.00024762,11]
[366890525,1750552252157,-500.0,0.00024768,2]
[366890526,1750552252167,-1500.0,0.00024768,2]
[366890527,1750552252176,-500.0,0.00024795,2]
[366890528,1750552252185,-151.0,0.000248,7]
[366890529,1750552252196,-165.396995,0.000248,7]
[366890530,1750552252206,-165.396995,0.000248,7]
[366890531,1750552252215,-151.982218,0.000248,7]
[366890532,1750552252224,-151.578217,0.000248,7]
[366890533,1750552252234,-162.175104,0.000248,7]
[366890534,1750552252243,-151.0,0.000248,7]
[366890535,1750552252253,-151.0,0.000248,7]
[366890536,1750552252267,-187.493283,0.000248,7]
[366890537,1750552252276,-187.493283,0.000248,7]
[366890538,1750552252286,-242.315249,0.000248,7]
[366890539,1750552252297,-242.315249,0.000248,7]
[366890540,1750552252307,-151.0,0.000248,7]
[366890541,1750552252317,-151.0,0.000248,6]
[366890542,1750552252326,-727.247089,0.000248,7]
[366890543,1750552252336,-727.247089,0.000248,7]
[366890544,1750552252347,-151.0,0.000248,7]
[366890545,1750552252356,-213.55395994,0.000248,3]
[366890546,1750552252366,-153.895371,0.000248,7]
[366890547,1750552252375,-259.783993,0.000248,7]
[366890548,1750552252384,-259.783993,0.000248,7]
[366890549,1750552252393,-151.0,0.000248,7]
[366890550,1750552252403,-152.118465,0.000248,7]
[366890551,1750552252412,-5195.57459549,0.000248,2]
[366890552,1750552252422,-1297.05,0.000248,7]
[366890553,1750552252431,-500.0,0.00024822,2]
[366890554,1750552252441,-500.0,0.0002485,2]
[366890555,1750552252450,-151.0,0.00024853,7]
[366890556,1750552252459,-151.0,0.00024853,7]
[366890557,1750552252469,-151.0,0.00024853,7]
[366890558,1750552252478,-160.0,0.00024853,3]
[366890559,1750552252487,-5195.57459547,0.00024853,2]
[366890560,1750552252497,-1748.0,0.00024856,3]
[366890561,1750552252506,-1748.0,0.00024856,3]
[366890562,1750552252516,-317.0,0.00024856,3]
[366890563,1750552252525,-151.0,0.00024856,3]
[366890564,1750552252535,-151.0,0.00024856,3]
[366890565,1750552252546,-153.21148241,0.00024856,3]
[366890566,1750552252554,-1748.0,0.00024856,3]
[366890567,1750552252563,-1748.0,0.00024856,3]
[366890568,1750552252573,-1748.0,0.00024856,3]
[366890569,1750552252583,-1748.0,0.00024856,3]
[366890570,1750552252593,-1748.0,0.00024856,3]
[366890571,1750552252602,-1748.0,0.00024856,3]
[366890572,1750552252611,-1748.0,0.00024856,3]
[366890573,1750552252620,-1748.0,0.00024856,3]
[366890574,1750552252630,-709.00156594,0.00024856,3]
[366890575,1750552252640,-317.0,0.00024856,3]
[366890576,1750552252649,-317.0,0.00024856,3]
[366890577,1750552252659,-317.0,0.00024856,3]
[366890578,1750552252668,-317.0,0.00024856,3]
[366890579,1750552252677,-317.0,0.00024856,3]
[366890580,1750552252687,-317.0,0.00024856,3]
[366890581,1750552252696,-317.0,0.00024856,3]
[366890582,1750552252706,-324.34362012,0.00024856,3]
[366890583,1750552252716,-151.0,0.00024856,3]
[366890584,1750552252726,-151.0,0.00024856,3]
[366890585,1750552252736,-151.0,0.00024856,3]
[366890586,1750552252745,-151.0,0.00024856,3]
[366890587,1750552252755,-1748.0,0.00024856,3]
[366890588,1750552252765,-151.0,0.00024856,3]
[366890589,1750552252775,-1748.0,0.00024856,3]
[366890590,1750552252785,-151.0,0.00024856,3]
[366890591,1750552252795,-1748.0,0.00024856,3]
[366890592,1750552252805,-151.0,0.00024856,3]
[366890593,1750552252815,-1748.0,0.00024856,3]
[366890594,1750552252824,-151.0,0.00024856,3]
[366890595,1750552252834,-1748.0,0.00024856,3]
[366890596,1750552252844,-151.0,0.00024856,3]
[366890597,1750552252854,-1748.0,0.00024856,3]
[366890598,1750552252863,-151.0,0.00024856,3]
[366890599,1750552252872,-1748.0,0.00024856,3]
[366890600,1750552252882,-151.0,0.00024856,3]
[366890601,1750552252891,-1748.0,0.00024856,3]
[366890602,1750552252900,-151.0,0.00024856,3]
[366890603,1750552252909,-151.0,0.00024856,3]
[366890604,1750552252918,-1748.0,0.00024856,3]
[366890605,1750552252928,-1748.0,0.00024856,3]
[366890606,1750552252937,-1748.0,0.00024856,3]
[366890607,1750552252947,-1748.0,0.00024856,3]
[366890608,1750552252956,-1748.0,0.00024856,3]
[366890609,1750552252966,-1748.0,0.00024856,3]
[366890610,1750552252975,-1150.28628493,0.00024856,3]
[366890611,1750552252984,-151.0,0.00024856,7]
[366890612,1750552253066,-151.0,0.00024856,7]
[366890613,1750552253077,-258.222367,0.00024856,7]
[366890614,1750552253087,-258.222367,0.00024856,7]
[366890615,1750552253097,-8321.92824242,0.00024858,7]
[366890616,1750552253107,-213.55395994,0.0002486,3]
[366890617,1750552253116,-2729.02857469,0.00024866,12]
[366890618,1750552253126,-1000.0,0.00024868,2]
[366890619,1750552253136,-500.0,0.00024868,2]
[366890620,1750552253146,-150.0,0.00024873,2]
[366890621,1750552253155,-428.43522093,0.00024877,2]
[366890622,1750552253165,-500.0,0.00024877,2]
[366890623,1750552253174,-800.0,0.00024878,2]
[366890624,1750552253183,-215.0738,0.00024886,2]
[366890625,1750552253192,-151.0,0.00024889,7]
[366890626,1750552253202,-151.0,0.0002489,7]
[366890627,1750552253211,-151.0,0.0002489,7]
[366890628,1750552253221,-151.0,0.0002489,7]
[366890629,1750552253231,-151.0,0.0002489,7]
[366890630,1750552253241,-2850.0,0.000249,2]
[366890631,1750552253250,-2850.0,0.000249,2]
[366890632,1750552253263,-2850.0,0.000249,2]
[366890633,1750552253272,-160.0,0.000249,3]
[366890634,1750552253282,-151.0,0.000249,7]
[366890635,1750552253291,-151.0,0.000249,7]
[366890636,1750552253303,-151.0,0.000249,7]
[366890637,1750552253313,-151.0,0.000249,7]
[366890638,1750552253323,-151.0,0.000249,7]
[366890639,1750552253333,-151.0,0.000249,7]
[366890640,1750552253343,-165.396995,0.000249,7]
[366890641,1750552253353,-165.396995,0.000249,7]
[366890642,1750552253362,-193.642922,0.000249,7]
[366890643,1750552253372,-151.0,0.000249,7]
[366890644,1750552253382,-187.493283,0.000249,7]
[366890645,1750552253391,-187.493283,0.000249,7]
[366890646,1750552253400,-242.315249,0.000249,7]
[366890647,1750552253411,-242.315249,0.000249,7]
[366890648,1750552253420,-544.531843,0.000249,7]
[366890649,1750552253430,-544.531843,0.000249,7]
[366890650,1750552253440,-151.0,0.000249,7]
[366890651,1750552253449,-151.0,0.000249,7]
[366890652,1750552253459,-260.397465,0.000249,7]
[366890653,1750552253468,-1541.78,0.000249,2]
[366890654,1750552253478,-727.247089,0.000249,7]
[366890655,1750552253489,-727.247096,0.000249,7]
[366890656,1750552253499,-151.0,0.000249,7]
[366890657,1750552253509,-151.0,0.000249,7]
[366890658,1750552253518,-153.895363,0.000249,7]
[366890659,1750552253528,-259.783993,0.000249,7]
[366890660,1750552253538,-259.783985,0.000249,7]
[366890661,1750552253549,-246.298644,0.000249,7]
[366890662,1750552253559,-151.0,0.000249,7]
[366890663,1750552253569,-151.0,0.000249,7]
[366890664,1750552253578,-151.0,0.000249,7]
[366890665,1750552253587,-156.363393,0.000249,7]
[366890666,1750552253596,-151.0,0.000249,7]
[366890667,1750552253605,-156.363393,0.000249,7]
[366890668,1750552253614,-151.0,0.000249,7]
[366890669,1750552253623,-151.0,0.000249,7]
[366890670,1750552253633,-151.0,0.000249,7]
[366890671,1750552253643,-151.0,0.000249,7]
[366890672,1750552253652,-151.0,0.000249,7]
[366890673,1750552253662,-151.0,0.000249,7]
[366890674,1750552253672,-151.0,0.000249,7]
[366890675,1750552253681,-151.0,0.000249,7]
[366890676,1750552253691,-180.708275,0.000249,7]
[366890677,1750552253701,-180.708275,0.000249,7]
[366890678,1750552253711,-314.740953,0.000249,7]
[366890679,1750552253720,-314.740953,0.000249,7]
[366890680,1750552253730,-177.725555,0.000249,7]
[366890681,1750552253739,-177.725555,0.000249,7]
[366890682,1750552253749,-151.0,0.000249,7]
[366890683,1750552253759,-151.0,0.000249,7]
[366890684,1750552253768,-151.0,0.000249,7]
[366890685,1750552253778,-151.0,0.000249,7]
[366890686,1750552253788,-151.0,0.000249,7]
[366890687,1750552253797,-4442.94,0.000249,7]
[366890688,1750552253807,-763850.242844,0.000249,2]
[366890689,1750552253818,-258.222367,0.000249,7]
[366890690,1750552253828,-258.222367,0.000249,7]
[366890691,1750552253838,-151.0,0.000249,7]
[366890692,1750552253848,-151.0,0.000249,7]
[366890693,1750552253857,-250.0,0.000249,2]
[366890694,1750552253867,-250.0,0.000249,2]
[366890695,1750552253876,-250.0,0.000249,2]
[366890696,1750552253886,-250.0,0.000249,2]
[366890697,1750552253896,-250.0,0.000249,2]
[366890698,1750552253905,-184.6,0.00024902,7]
[366890699,1750552253915,-500.0,0.00024905,2]
[366890700,1750552253925,-5195.57459547,0.00024907,2]
[366890701,1750552253934,-262.26042249,0.00024931,120]
[366890702,1750552253944,-500.0,0.00024932,2]
[366890703,1750552253953,-800.0,0.00024944,2]
[366890704,1750552253963,-500.0,0.00024959,2]
[366890705,1750552253972,-5195.57459547,0.0002496,2]
[366890706,1750552253982,-2729.02857469,0.00024969,12]
[366890707,1750552253992,-428.43522093,0.00024986,2]
[366890708,1750552254002,-500.0,0.00024987,2]
[366890709,1750552254011,-151.0,0.00024987,7]
[366890710,1750552254021,-1574.79006043,0.00024999,2]
[366890711,1750552254030,-16425.23230299,0.00025,30]
[366890712,1750552254040,-1061.11339362,0.00025,2]
[366890713,1750552254051,-15960.02879261,0.00025,2]
[366890714,1750552254061,-2613.12828376,0.00025,2]
[366890715,1750552254071,-207.29037921,0.00025,2]
[366890716,1750552254081,-10364.0,0.00025,2]
[366890717,1750552254091,-357.8233027,0.00025,2]
[366890718,1750552254100,-203.5490439,0.00025,120]
[366890719,1750552254111,-150.0,0.00025,2]
[366890720,1750552254120,-150.0,0.00025,3]
[366890721,1750552254129,-172.47381765,0.00025,2]
[366890722,1750552254140,-50297.91868364,0.00025,2]
[366890723,1750552254149,-500.0,0.00025,17]
[366890724,1750552254159,-500.0,0.00025,14]
[366890725,1750552254168,-500.0,0.00025,14]
[366890726,1750552254177,-500.0,0.00025,14]
[366890727,1750552254187,-500.0,0.00025,14]
[366890728,1750552254196,-500.0,0.00025,14]
[366890729,1750552254205,-500.0,0.00025,14]
[366890730,1750552254215,-500.0,0.00025,14]
[366890731,1750552254224,-151.0,0.00025,7]
[366890732,1750552254233,-151.0,0.00025,7]
[366890733,1750552254244,-6827.0,0.00025,2]
[366890734,1750552254253,-2886.0,0.00025,2]
[366890735,1750552254265,-152.0,0.00025,120]
[366890736,1750552254275,-151.0,0.00025,7]
[366890737,1750552254284,-151.0,0.00025,7]
[366890738,1750552254293,-151.0,0.00025,7]
[366890739,1750552254309,-151.0,0.00025,7]
[366890740,1750552254318,-151.0,0.00025,7]
[366890741,1750552254327,-151.0,0.00025,7]
[366890742,1750552254336,-165.396995,0.00025,7]
[366890743,1750552254346,-165.396995,0.00025,7]
[366890744,1750552254355,-406.540493,0.00025,7]
[366890745,1750552254365,-213.036528,0.00025,7]
[366890746,1750552254374,-187.493283,0.00025,7]
[366890747,1750552254384,-187.493283,0.00025,7]
[366890748,1750552254393,-242.315249,0.00025,7]
[366890749,1750552254402,-242.315249,0.00025,7]
[366890750,1750552254411,-544.531843,0.00025,7]
[366890751,1750552254421,-544.531843,0.00025,7]
[366890752,1750552254431,-160.0,0.00025,4]
[366890753,1750552254440,-151.0,0.00025,7]
[366890754,1750552254449,-169.0,0.00025,7]
[366890755,1750552254459,-151.0,0.00025,7]
[366890756,1750552254469,-151.0,0.00025,7]
[366890757,1750552254478,-213.55395994,0.00025,30]
[366890758,1750552254488,-213.55395994,0.00025,120]
[366890759,1750552254498,-151.0,0.00025,7]
[366890760,1750552254508,-151.0,0.00025,7]
[366890761,1750552254517,-156.363393,0.00025,7]
[366890762,1750552254526,-151.0,0.00025,7]
[366890763,1750552254535,-156.363393,0.00025,7]
[366890764,1750552254544,-171.0,0.00025,7]
[366890765,1750552254556,-151.0,0.00025,7]
[366890766,1750552254565,-151.0,0.00025,7]
[366890767,1750552254576,-151.0,0.00025,7]
[366890768,1750552254654,-151.0,0.00025,7]
[366890769,1750552254665,-171.0,0.00025,7]
[366890770,1750552254675,-314.740953,0.00025,7]
[366890771,1750552254685,-314.740953,0.00025,7]
[366890772,1750552254694,-160.0,0.00025,30]
[366890773,1750552254704,-24493.67953749,0.00025,2]
[366890774,1750552254713,-230.10342898,0.00025,30]
[366890775,1750552254722,-523.9660634,0.00025,120]
[366890776,1750552254732,-5195.57459547,0.00025013,2]
[366890777,1750552254741,-500.0,0.00025014,2]
[366890778,1750552254751,-151.0,0.00025024,7]
[366890779,1750552254761,-151.0,0.00025024,7]
[366890780,1750552254770,-151.0,0.00025024,7]
[366890781,1750552254779,-151.0,0.00025024,7]
[366890782,1750552254789,-165.67149383,0.00025032,2]
[366890783,1750552254800,-406.540493,0.00025038,7]
[366890784,1750552254809,-544.531843,0.00025038,7]
[366890785,1750552254819,-544.531843,0.00025038,7]
[366890786,1750552254828,-500.0,0.00025042,2]
[366890787,1750552254838,-184.6,0.00025058,7]
[366890788,1750552254847,-5195.57459547,0.00025067,2]
[366890789,1750552254856,-151.0,0.00025068,7]
[366890790,1750552254866,-151.0,0.00025068,7]
[366890791,1750552254875,-165.396995,0.00025068,7]
[366890792,1750552254885,-165.396995,0.00025068,7]
[366890793,1750552254894,-175.51622904,0.00025068,2]
[366890794,1750552254903,-500.0,0.00025069,2]
[366890795,1750552254913,-2729.02857469,0.00025072,12]
[366890796,1750552254923,-151.0,0.0002508,7]
[366890797,1750552254932,-1713.329692,0.0002508,5]
[366890798,1750552254942,-428.43522093,0.00025096,2]
[366890799,1750552254951,-500.0,0.00025096,2]
[366890800,1750552254961,-151.0,0.000251,7]
[366890801,1750552254970,-151.0,0.000251,7]
[366890802,1750552254979,-1000.0,0.000251,5]
[366890803,1750552254988,-640.0,0.000251,2]
[366890804,1750552254998,-37205.76361317,0.000251,60]
[366890805,1750552255007,-151.0,0.00025103,7]
[366890806,1750552255017,-151.0,0.00025111,7]
[366890807,1750552255026,-151.0,0.00025111,7]
[366890808,1750552255036,-168.0,0.00025113,7]
[366890809,1750552255045,-200.0,0.00025117,120]
[366890810,1750552255058,-1000.0,0.0002512,5]
[366890811,1750552255067,-5195.57459547,0.0002512,2]
[366890812,1750552255077,-603.65051825,0.00025121,2]
[366890813,1750552255087,-502.43041222,0.00025121,2]
[366890814,1750552255096,-502.97608695,0.00025121,2]
[366890815,1750552255106,-1000.0,0.00025121,2]
[366890816,1750552255115,-1000.0,0.00025121,2]
[366890817,1750552255124,-1200.0,0.00025121,2]
[366890818,1750552255133,-1000.0,0.00025121,2]
[366890819,1750552255142,-500.0,0.00025124,2]
[366890820,1750552255152,-151.0,0.0002513,7]
[366890821,1750552255162,-180.708275,0.0002513,7]
[366890822,1750552255171,-180.708275,0.0002513,7]
[366890823,1750552255180,-654.0,0.0002513,2]
[366890824,1750552255190,-2161.0,0.0002513,2]
[366890825,1750552255200,-406.0,0.0002513,2]
[366890826,1750552255209,-965.0,0.0002513,2]
[366890827,1750552255219,-1000.0,0.0002514,5]
[366890828,1750552255228,-1000.0,0.0002516,5]
[366890829,1750552255238,-5195.57459547,0.00025173,2]